[Event "Titled Tuesday Blitz December 13 Early 2022"]
[White "Sovetbekova, Nurai"]
[Black "Bettalli, Francesco"]
[WhiteFideId "13801910"]
[BlackFideId "2816453"]
[WhiteElo "1925"]
[BlackElo "2216"]
[Result "0-1"]
[Round "08"]
[TimeControl "180+1"]
[Date "2022.12.14"]
[WhiteClock "0:00:01"]
[BlackClock "0:01:06"]

1. d4 {[%clk 0:03:00]}  e5 {[%clk 0:02:48]} 2. dxe5 {[%clk 0:03:00]}  Nc6 {[%clk 0:02:48]} 3. Nf3 {[%clk 0:02:58]}  Qe7 {[%clk 0:02:48]} 4. e3 {[%clk 0:02:55]}  Nxe5 {[%clk 0:02:48]} 5. Be2 {[%clk 0:02:56]}  Nf6 {[%clk 0:02:48]} 6. c4 {[%clk 0:02:49]}  b6 {[%clk 0:02:46]} 7. Nxe5 {[%clk 0:02:47]}  Qxe5 {[%clk 0:02:47]} 8. Bf3 {[%clk 0:02:47]}  Rb8 {[%clk 0:02:45]} 9. Nc3 {[%clk 0:02:46]}  Bb4 {[%clk 0:02:44]} 10. Bd2 {[%clk 0:02:45]}  O-O {[%clk 0:02:44]} 11. a3 {[%clk 0:02:45]}  Be7 {[%clk 0:02:43]} 12. Nb5 {[%clk 0:02:39]}  c6 {[%clk 0:02:40]} 13. Bc3 {[%clk 0:02:36]}  Qf5 {[%clk 0:02:38]} 14. Nd4 {[%clk 0:02:32]}  Qg6 {[%clk 0:02:38]} 15. O-O {[%clk 0:02:29]}  a6 {[%clk 0:02:35]} 16. b4 {[%clk 0:02:23]}  Ne4 {[%clk 0:02:35]} 17. Bb2 {[%clk 0:02:17]}  d5 {[%clk 0:02:33]} 18. Rc1 {[%clk 0:02:10]}  c5 {[%clk 0:02:30]} 19. Nb3 {[%clk 0:01:55]}  cxb4 {[%clk 0:02:22]} 20. axb4 {[%clk 0:01:55]}  Bxb4 {[%clk 0:02:22]} 21. cxd5 {[%clk 0:01:50]}  Nc5 {[%clk 0:02:17]} 22. Nd4 {[%clk 0:01:38]}  Bd7 {[%clk 0:02:08]} 23. Qe2 {[%clk 0:01:28]}  Nd3 {[%clk 0:02:01]} 24. Rb1 {[%clk 0:01:24]}  Nxb2 {[%clk 0:02:00]} 25. Rxb2 {[%clk 0:01:24]}  Bc3 {[%clk 0:01:58]} 26. Rc2 {[%clk 0:01:22]}  Bxd4 {[%clk 0:01:59]} 27. exd4 {[%clk 0:01:23]}  Bb5 {[%clk 0:01:58]} 28. Qd2 {[%clk 0:01:17]}  Bxf1 {[%clk 0:01:58]} 29. Kxf1 {[%clk 0:01:18]}  Rbc8 {[%clk 0:01:57]} 30. Rb2 {[%clk 0:01:11]}  b5 {[%clk 0:01:50]} 31. g3 {[%clk 0:01:09]}  Rc4 {[%clk 0:01:45]} 32. Qf4 {[%clk 0:00:58]}  Rfc8 {[%clk 0:01:42]} 33. d6 {[%clk 0:00:55]}  Qf6 {[%clk 0:01:27]} 34. Qxf6 {[%clk 0:00:23]}  gxf6 {[%clk 0:01:28]} 35. Bb7 {[%clk 0:00:22]}  Rd8 {[%clk 0:01:19]} 36. Bxa6 {[%clk 0:00:22]}  Rxd4 {[%clk 0:01:18]} 37. Rxb5 {[%clk 0:00:18]}  R8xd6 {[%clk 0:01:18]} 38. Rb8+ {[%clk 0:00:18]}  Kg7 {[%clk 0:01:18]} 39. Be2 {[%clk 0:00:18]}  f5 {[%clk 0:01:17]} 40. Rb5 {[%clk 0:00:15]}  f4 {[%clk 0:01:17]} 41. Rg5+ {[%clk 0:00:13]}  Kf6 {[%clk 0:01:17]} 42. Rh5 {[%clk 0:00:12]}  fxg3 {[%clk 0:01:15]} 43. hxg3 {[%clk 0:00:12]}  Kg7 {[%clk 0:01:15]} 44. Rg5+ {[%clk 0:00:12]}  Rg6 {[%clk 0:01:15]} 45. Rxg6+ {[%clk 0:00:10]}  fxg6 {[%clk 0:01:13]} 46. Kg2 {[%clk 0:00:11]}  h5 {[%clk 0:01:13]} 47. Bf3 {[%clk 0:00:10]}  Kf6 {[%clk 0:01:13]} 48. Bc6 {[%clk 0:00:09]}  Kg5 {[%clk 0:01:13]} 49. Be8 {[%clk 0:00:09]}  Rd8 {[%clk 0:01:12]} 50. Bf7 {[%clk 0:00:08]}  Rd3 {[%clk 0:01:13]} 51. Be8 {[%clk 0:00:08]}  Rc3 {[%clk 0:01:13]} 52. Bf7 {[%clk 0:00:07]}  Kh6 {[%clk 0:01:12]} 53. Be8 {[%clk 0:00:07]}  g5 {[%clk 0:01:13]} 54. Bf7 {[%clk 0:00:05]}  h4 {[%clk 0:01:13]} 55. Be6 {[%clk 0:00:03]}  Kg6 {[%clk 0:01:12]} 56. Bd7 {[%clk 0:00:03]}  Kf6 {[%clk 0:01:12]} 57. Bg4 {[%clk 0:00:02]}  Ke5 {[%clk 0:01:12]} 58. Bh3 {[%clk 0:00:03]}  Kd4 {[%clk 0:01:12]} 59. Bf5 {[%clk 0:00:03]}  Ra3 {[%clk 0:01:11]} 60. Bc8 {[%clk 0:00:02]}  Kc3 {[%clk 0:01:11]} 61. gxh4 {[%clk 0:00:02]}  gxh4 {[%clk 0:01:10]} 62. Kh3 {[%clk 0:00:02]}  Ra8 {[%clk 0:01:09]} 63. Bg4 {[%clk 0:00:01]}  Rh8 {[%clk 0:01:09]} 64. f4 {[%clk 0:00:02]}  Kd4 {[%clk 0:01:10]} 65. f5 {[%clk 0:00:01]}  Ke5 {[%clk 0:01:10]} 66. f6 {[%clk 0:00:01]}  Kxf6 {[%clk 0:01:10]} 67. Bf3 {[%clk 0:00:02]}  Kg5 {[%clk 0:01:11]} 68. Bg4 {[%clk 0:00:03]}  Kf4 {[%clk 0:01:11]} 69. Bd7 {[%clk 0:00:03]}  Kg5 {[%clk 0:01:11]} 70. Be6 {[%clk 0:00:03]}  Rd8 {[%clk 0:01:11]} 71. Kg2 {[%clk 0:00:02]}  Rd3 {[%clk 0:01:11]} 72. Bh3 {[%clk 0:00:02]}  Rg3+ {[%clk 0:01:11]} 73. Kh2 {[%clk 0:00:02]}  Kf4 {[%clk 0:01:12]} 74. Bc8 {[%clk 0:00:02]}  Ra3 {[%clk 0:01:13]} 75. Be6 {[%clk 0:00:03]}  Rc3 {[%clk 0:01:12]} 76. Bd7 {[%clk 0:00:03]}  Rc2+ {[%clk 0:01:06]} 77. Kh3 {[%clk 0:00:03]}  Rc1 {[%clk 0:01:06]} 78. Kxh4 {[%clk 0:00:02]}  Rh1+ {[%clk 0:01:05]} 79. Bh3 {[%clk 0:00:03]}  Ra1 {[%clk 0:01:06]} 80. Kh5 {[%clk 0:00:03]}  Rh1 {[%clk 0:01:05]} 81. Kh4 {[%clk 0:00:03]}  Rh2 {[%clk 0:01:06]} 82. Kh5 {[%clk 0:00:01]}  Rxh3+ {[%clk 0:01:06]} 0-1


[Site "https://www.chess.com"]

[Event "Titled Tuesday Blitz December 13 Early 2022"]
[White "Steinberg, Nitzan"]
[Black "Movahed, Sina"]
[WhiteFideId "2801795"]
[BlackFideId "42520835"]
[WhiteElo "2491"]
[BlackElo "2225"]
[Result "0-1"]
[Round "08"]
[TimeControl "180+1"]
[Date "2022.12.13"]
[WhiteClock "0:00:01"]
[BlackClock "0:00:49"]

1. Nf3 {[%clk 0:03:00]}  Nf6 {[%clk 0:02:59]} 2. g3 {[%clk 0:03:00]}  g6 {[%clk 0:02:59]} 3. Bg2 {[%clk 0:03:01]}  Bg7 {[%clk 0:03:00]} 4. O-O {[%clk 0:03:01]}  O-O {[%clk 0:03:00]} 5. c4 {[%clk 0:03:01]}  d6 {[%clk 0:03:00]} 6. d4 {[%clk 0:03:01]}  Nbd7 {[%clk 0:02:59]} 7. Nc3 {[%clk 0:03:01]}  e5 {[%clk 0:02:59]} 8. Qc2 {[%clk 0:02:50]}  exd4 {[%clk 0:02:56]} 9. Nxd4 {[%clk 0:02:50]}  Nb6 {[%clk 0:02:57]} 10. b3 {[%clk 0:02:34]}  c5 {[%clk 0:02:55]} 11. Ndb5 {[%clk 0:02:34]}  a6 {[%clk 0:02:54]} 12. Na3 {[%clk 0:02:33]}  Bf5 {[%clk 0:02:52]} 13. Qd2 {[%clk 0:02:29]}  d5 {[%clk 0:02:50]} 14. cxd5 {[%clk 0:02:20]}  Nfxd5 {[%clk 0:02:49]} 15. Nxd5 {[%clk 0:02:20]}  Bxa1 {[%clk 0:02:48]} 16. Nxb6 {[%clk 0:02:15]}  Qxb6 {[%clk 0:02:48]} 17. Nc4 {[%clk 0:02:13]}  Qf6 {[%clk 0:02:45]} 18. Bxb7 {[%clk 0:02:04]}  Rad8 {[%clk 0:02:43]} 19. Qh6 {[%clk 0:01:41]}  Rd7 {[%clk 0:02:37]} 20. Bf3 {[%clk 0:01:32]}  Bd4 {[%clk 0:02:33]} 21. Ba3 {[%clk 0:01:25]}  Re8 {[%clk 0:02:29]} 22. Bc1 {[%clk 0:00:41]}  Be4 {[%clk 0:02:02]} 23. Bg4 {[%clk 0:00:34]}  Rd5 {[%clk 0:01:59]} 24. Be3 {[%clk 0:00:28]}  Bxe3 {[%clk 0:01:43]} 25. Nxe3 {[%clk 0:00:27]}  Rd4 {[%clk 0:01:39]} 26. Rc1 {[%clk 0:00:26]}  Bc6 {[%clk 0:01:32]} 27. Bh3 {[%clk 0:00:21]}  Bd7 {[%clk 0:01:26]} 28. Bg2 {[%clk 0:00:20]}  Qd6 {[%clk 0:01:21]} 29. Qg5 {[%clk 0:00:17]}  h6 {[%clk 0:01:19]} 30. Qxh6 {[%clk 0:00:12]}  Rd2 {[%clk 0:01:11]} 31. Bf3 {[%clk 0:00:09]}  Qd4 {[%clk 0:01:02]} 32. Kg2 {[%clk 0:00:08]}  Bb5 {[%clk 0:01:00]} 33. h4 {[%clk 0:00:07]}  Bxe2 {[%clk 0:00:59]} 34. h5 {[%clk 0:00:03]}  Bxf3+ {[%clk 0:00:58]} 35. Kg1 {[%clk 0:00:03]}  Rxe3 {[%clk 0:00:50]} 36. Qxe3 {[%clk 0:00:02]}  Rd1+ {[%clk 0:00:48]} 37. Kh2 {[%clk 0:00:01]}  Qxe3 {[%clk 0:00:49]} 0-1


[Site "https://www.chess.com"]

[Event "Titled Tuesday Blitz December 13 Early 2022"]
[White "Tarasova, Viktoriya"]
[Black "Lehtosaari, Mauri"]
[WhiteFideId "4175840"]
[BlackFideId "501999"]
[WhiteElo "2182"]
[BlackElo "2509"]
[Result "1/2-1/2"]
[Round "08"]
[TimeControl "180+1"]
[Date "2022.12.14"]
[WhiteClock "0:00:05"]
[BlackClock "0:00:09"]

1. d4 {[%clk 0:03:00]}  d5 {[%clk 0:02:59]} 2. c4 {[%clk 0:03:00]}  c6 {[%clk 0:02:59]} 3. Nf3 {[%clk 0:03:00]}  Nf6 {[%clk 0:03:00]} 4. Nc3 {[%clk 0:03:00]}  dxc4 {[%clk 0:03:00]} 5. a4 {[%clk 0:02:59]}  Bf5 {[%clk 0:02:59]} 6. Ne5 {[%clk 0:03:00]}  Nbd7 {[%clk 0:02:57]} 7. Nxc4 {[%clk 0:03:00]}  Nb6 {[%clk 0:02:54]} 8. Ne5 {[%clk 0:02:59]}  a5 {[%clk 0:02:53]} 9. f3 {[%clk 0:02:59]}  Nfd7 {[%clk 0:02:48]} 10. Nxd7 {[%clk 0:02:58]}  Nxd7 {[%clk 0:02:27]} 11. e4 {[%clk 0:02:58]}  Bg6 {[%clk 0:02:27]} 12. Be3 {[%clk 0:02:54]}  e5 {[%clk 0:02:27]} 13. dxe5 {[%clk 0:02:45]}  Bc5 {[%clk 0:02:26]} 14. Bxc5 {[%clk 0:02:34]}  Nxc5 {[%clk 0:02:26]} 15. Be2 {[%clk 0:02:28]}  Qe7 {[%clk 0:02:19]} 16. O-O {[%clk 0:02:25]}  Rd8 {[%clk 0:02:08]} 17. Qc2 {[%clk 0:02:24]}  Qxe5 {[%clk 0:02:06]} 18. Rad1 {[%clk 0:01:58]}  Rxd1 {[%clk 0:01:56]} 19. Qxd1 {[%clk 0:01:42]}  Ne6 {[%clk 0:01:50]} 20. Kh1 {[%clk 0:01:25]}  O-O {[%clk 0:01:43]} 21. Bc4 {[%clk 0:01:09]}  Rd8 {[%clk 0:01:37]} 22. Qc1 {[%clk 0:01:08]}  Qf4 {[%clk 0:01:12]} 23. Qxf4 {[%clk 0:00:57]}  Nxf4 {[%clk 0:01:12]} 24. Rd1 {[%clk 0:00:58]}  Rxd1+ {[%clk 0:01:11]} 25. Nxd1 {[%clk 0:00:58]}  Kf8 {[%clk 0:01:10]} 26. g3 {[%clk 0:00:51]}  Ne6 {[%clk 0:01:09]} 27. Kg2 {[%clk 0:00:47]}  Nc5 {[%clk 0:01:05]} 28. Nc3 {[%clk 0:00:46]}  f6 {[%clk 0:01:03]} 29. Kf2 {[%clk 0:00:44]}  Ke7 {[%clk 0:00:58]} 30. Ke3 {[%clk 0:00:43]}  Kd6 {[%clk 0:00:55]} 31. f4 {[%clk 0:00:37]}  Be8 {[%clk 0:00:54]} 32. Kd4 {[%clk 0:00:33]}  b6 {[%clk 0:00:54]} 33. Ba2 {[%clk 0:00:20]}  Nd7 {[%clk 0:00:48]} 34. Bg8 {[%clk 0:00:17]}  h6 {[%clk 0:00:48]} 35. Bc4 {[%clk 0:00:15]}  g5 {[%clk 0:00:45]} 36. Ba2 {[%clk 0:00:12]}  Bh5 {[%clk 0:00:45]} 37. Bc4 {[%clk 0:00:10]}  Bf3 {[%clk 0:00:40]} 38. Ke3 {[%clk 0:00:10]}  Bg2 {[%clk 0:00:36]} 39. Kd4 {[%clk 0:00:10]}  h5 {[%clk 0:00:26]} 40. Ba2 {[%clk 0:00:10]}  h4 {[%clk 0:00:24]} 41. Bf7 {[%clk 0:00:09]}  Ke7 {[%clk 0:00:14]} 42. Bg8 {[%clk 0:00:08]}  Bh3 {[%clk 0:00:14]} 43. Ba2 {[%clk 0:00:08]}  Be6 {[%clk 0:00:13]} 44. Bxe6 {[%clk 0:00:08]}  Kxe6 {[%clk 0:00:14]} 45. Nd1 {[%clk 0:00:04]}  Nb8 {[%clk 0:00:10]} 46. Nc3 {[%clk 0:00:04]}  Na6 {[%clk 0:00:10]} 47. Ke3 {[%clk 0:00:04]}  Nb4 {[%clk 0:00:11]} 48. Kd4 {[%clk 0:00:05]}  Nc2+ {[%clk 0:00:10]} 49. Kd3 {[%clk 0:00:05]}  Ne1+ {[%clk 0:00:10]} 50. Ke2 {[%clk 0:00:05]}  Nc2 {[%clk 0:00:10]} 51. Kd3 {[%clk 0:00:05]}  Nb4+ {[%clk 0:00:11]} 52. Ke3 {[%clk 0:00:06]}  Kd6 {[%clk 0:00:11]} 53. Kd4 {[%clk 0:00:06]}  hxg3 {[%clk 0:00:11]} 54. hxg3 {[%clk 0:00:05]}  Na6 {[%clk 0:00:11]} 55. e5+ {[%clk 0:00:04]}  Ke6 {[%clk 0:00:10]} 56. exf6 {[%clk 0:00:03]}  Kxf6 {[%clk 0:00:09]} 57. fxg5+ {[%clk 0:00:04]}  Kxg5 {[%clk 0:00:09]} 58. Ne4+ {[%clk 0:00:04]}  Kg4 {[%clk 0:00:08]} 59. Ke5 {[%clk 0:00:05]}  b5 {[%clk 0:00:07]} 60. axb5 {[%clk 0:00:04]}  cxb5 {[%clk 0:00:08]} 61. Nd6 {[%clk 0:00:04]}  b4 {[%clk 0:00:08]} 62. Kd4 {[%clk 0:00:04]}  a4 {[%clk 0:00:08]} 63. Kc4 {[%clk 0:00:04]}  a3 {[%clk 0:00:09]} 64. Kb3 {[%clk 0:00:05]}  axb2 {[%clk 0:00:09]} 65. Kxb2 {[%clk 0:00:05]}  Kxg3 {[%clk 0:00:09]} 66. Kb3 {[%clk 0:00:06]}  Kf4 {[%clk 0:00:09]} 67. Nc4 {[%clk 0:00:05]}  Ke4 {[%clk 0:00:09]} 68. Nb2 {[%clk 0:00:06]}  Kd4 {[%clk 0:00:08]} 69. Na4 {[%clk 0:00:05]}  Kd3 {[%clk 0:00:08]} 70. Nb6 {[%clk 0:00:05]}  Kd4 {[%clk 0:00:08]} 71. Na4 {[%clk 0:00:04]}  Kd5 {[%clk 0:00:08]} 72. Nb6+ {[%clk 0:00:04]}  Kc5 {[%clk 0:00:08]} 73. Na4+ {[%clk 0:00:04]}  Kb5 {[%clk 0:00:09]} 74. Nb2 {[%clk 0:00:05]}  Nc5+ {[%clk 0:00:09]} 75. Kc2 {[%clk 0:00:06]}  Na4 {[%clk 0:00:09]} 76. Nd3 {[%clk 0:00:05]}  Nb6 {[%clk 0:00:09]} 77. Nxb4 {[%clk 0:00:05]} 1/2-1/2


[Site "https://www.chess.com"]

[Event "Titled Tuesday Blitz December 13 Early 2022"]
[White "Tarnowska, Aleksandra"]
[Black "Bashirli, Saadat"]
[WhiteFideId "1180967"]
[BlackFideId "13429990"]
[WhiteElo "1776"]
[BlackElo "1408"]
[Result "1-0"]
[Round "08"]
[TimeControl "180+1"]
[Date "2022.12.14"]
[WhiteClock "0:00:24"]
[BlackClock "0:00:08"]

1. e4 {[%clk 0:03:00]}  c5 {[%clk 0:02:59]} 2. Nf3 {[%clk 0:03:00]}  g6 {[%clk 0:02:58]} 3. c4 {[%clk 0:02:52]}  Bg7 {[%clk 0:02:57]} 4. d4 {[%clk 0:02:51]}  cxd4 {[%clk 0:02:57]} 5. Nxd4 {[%clk 0:02:52]}  Nc6 {[%clk 0:02:57]} 6. Nb3 {[%clk 0:02:49]}  e6 {[%clk 0:02:51]} 7. Nc3 {[%clk 0:02:49]}  a6 {[%clk 0:02:48]} 8. Be3 {[%clk 0:02:30]}  Nge7 {[%clk 0:02:47]} 9. Be2 {[%clk 0:02:30]}  O-O {[%clk 0:01:54]} 10. O-O {[%clk 0:02:29]}  Nb4 {[%clk 0:01:39]} 11. a3 {[%clk 0:02:15]}  Nbc6 {[%clk 0:01:38]} 12. c5 {[%clk 0:02:15]}  f5 {[%clk 0:01:29]} 13. exf5 {[%clk 0:02:03]}  Nxf5 {[%clk 0:01:30]} 14. Qd2 {[%clk 0:01:44]}  Nxe3 {[%clk 0:01:16]} 15. Qxe3 {[%clk 0:01:45]}  d5 {[%clk 0:01:09]} 16. cxd6 {[%clk 0:01:42]}  Qxd6 {[%clk 0:01:09]} 17. Rad1 {[%clk 0:01:42]}  Qe7 {[%clk 0:01:08]} 18. Rfe1 {[%clk 0:01:31]}  b5 {[%clk 0:01:01]} 19. Bf3 {[%clk 0:01:27]}  Qc7 {[%clk 0:00:44]} 20. Qe4 {[%clk 0:01:10]}  Bb7 {[%clk 0:00:32]} 21. Qxe6+ {[%clk 0:01:09]}  Kh8 {[%clk 0:00:33]} 22. Nd5 {[%clk 0:01:07]}  Qf7 {[%clk 0:00:26]} 23. Qxf7 {[%clk 0:01:04]}  Rxf7 {[%clk 0:00:27]} 24. Nc5 {[%clk 0:00:57]}  Bxb2 {[%clk 0:00:20]} 25. Nxb7 {[%clk 0:00:57]}  Rxb7 {[%clk 0:00:21]} 26. Nb4 {[%clk 0:00:52]}  Nxb4 {[%clk 0:00:14]} 27. Bxb7 {[%clk 0:00:53]}  Rb8 {[%clk 0:00:14]} 28. axb4 {[%clk 0:00:48]}  Rxb7 {[%clk 0:00:13]} 29. Re6 {[%clk 0:00:45]}  Bc3 {[%clk 0:00:11]} 30. Rb1 {[%clk 0:00:39]}  a5 {[%clk 0:00:10]} 31. bxa5 {[%clk 0:00:33]}  Bxa5 {[%clk 0:00:11]} 32. Re5 {[%clk 0:00:33]}  Bc3 {[%clk 0:00:05]} 33. Rexb5 {[%clk 0:00:33]}  Rd7 {[%clk 0:00:04]} 34. Rb8+ {[%clk 0:00:32]}  Kg7 {[%clk 0:00:04]} 35. R1b7 {[%clk 0:00:33]}  Rf7 {[%clk 0:00:04]} 36. Rxf7+ {[%clk 0:00:33]}  Kxf7 {[%clk 0:00:05]} 37. Rb7+ {[%clk 0:00:33]}  Kg8 {[%clk 0:00:05]} 38. g3 {[%clk 0:00:32]}  Be5 {[%clk 0:00:05]} 39. Kg2 {[%clk 0:00:33]}  Bd4 {[%clk 0:00:05]} 40. f4 {[%clk 0:00:33]}  Bf6 {[%clk 0:00:06]} 41. Kf3 {[%clk 0:00:34]}  Bd4 {[%clk 0:00:06]} 42. g4 {[%clk 0:00:34]}  Bf6 {[%clk 0:00:07]} 43. h3 {[%clk 0:00:34]}  Bd4 {[%clk 0:00:07]} 44. f5 {[%clk 0:00:33]}  Bf6 {[%clk 0:00:07]} 45. Kf4 {[%clk 0:00:29]}  Bc3 {[%clk 0:00:02]} 46. fxg6 {[%clk 0:00:22]}  hxg6 {[%clk 0:00:03]} 47. Kg5 {[%clk 0:00:23]}  Bd2+ {[%clk 0:00:02]} 48. Kxg6 {[%clk 0:00:23]}  Kf8 {[%clk 0:00:03]} 49. h4 {[%clk 0:00:22]}  Ke8 {[%clk 0:00:02]} 50. h5 {[%clk 0:00:23]}  Kf8 {[%clk 0:00:02]} 51. h6 {[%clk 0:00:23]}  Bc3 {[%clk 0:00:02]} 52. h7 {[%clk 0:00:23]}  Ke8 {[%clk 0:00:03]} 53. Rb8+ {[%clk 0:00:23]}  Ke7 {[%clk 0:00:02]} 54. h8=Q {[%clk 0:00:24]}  Bxh8 {[%clk 0:00:02]} 55. Rxh8 {[%clk 0:00:25]}  Ke6 {[%clk 0:00:03]} 56. Rf8 {[%clk 0:00:25]}  Kd7 {[%clk 0:00:04]} 57. Kf7 {[%clk 0:00:25]}  Kd6 {[%clk 0:00:05]} 58. g5 {[%clk 0:00:25]}  Kc7 {[%clk 0:00:05]} 59. g6 {[%clk 0:00:26]}  Kc6 {[%clk 0:00:06]} 60. g7 {[%clk 0:00:27]}  Kd6 {[%clk 0:00:06]} 61. g8=Q {[%clk 0:00:28]}  Kc6 {[%clk 0:00:07]} 62. Qg5 {[%clk 0:00:26]}  Kd6 {[%clk 0:00:07]} 63. Rg8 {[%clk 0:00:25]}  Kc7 {[%clk 0:00:08]} 64. Kg7 {[%clk 0:00:25]}  Kd6 {[%clk 0:00:09]} 65. Kh7 {[%clk 0:00:25]}  Kc7 {[%clk 0:00:10]} 66. Rg6 {[%clk 0:00:24]}  Kd7 {[%clk 0:00:10]} 67. Qf5+ {[%clk 0:00:23]}  Kc7 {[%clk 0:00:11]} 68. Qf7+ {[%clk 0:00:23]}  Kd8 {[%clk 0:00:08]} 69. Rg8# {[%clk 0:00:24]} 1-0


[Site "https://www.chess.com"]

[Event "Titled Tuesday Blitz December 13 Early 2022"]
[White "Timofeev, Artyom"]
[Black "Lazavik, Denis"]
[WhiteFideId "4140419"]
[BlackFideId "13515110"]
[WhiteElo "2586"]
[BlackElo "2484"]
[Result "1-0"]
[Round "08"]
[TimeControl "180+1"]
[Date "2022.12.13"]
[WhiteClock "0:00:55"]
[BlackClock "0:00:02"]

1. d4 {[%clk 0:03:00]}  Nf6 {[%clk 0:02:59]} 2. Nc3 {[%clk 0:03:00]}  d5 {[%clk 0:02:59]} 3. Bf4 {[%clk 0:03:00]}  a6 {[%clk 0:02:57]} 4. e3 {[%clk 0:02:58]}  e6 {[%clk 0:02:57]} 5. g4 {[%clk 0:02:56]}  Bb4 {[%clk 0:02:57]} 6. Bd3 {[%clk 0:02:54]}  c5 {[%clk 0:02:54]} 7. g5 {[%clk 0:02:53]}  Nfd7 {[%clk 0:02:54]} 8. a3 {[%clk 0:02:46]}  Bxc3+ {[%clk 0:02:50]} 9. bxc3 {[%clk 0:02:46]}  Nc6 {[%clk 0:02:51]} 10. Nf3 {[%clk 0:02:42]}  Qa5 {[%clk 0:02:47]} 11. Qd2 {[%clk 0:02:42]}  b5 {[%clk 0:02:36]} 12. h4 {[%clk 0:02:38]}  Bb7 {[%clk 0:02:35]} 13. a4 {[%clk 0:02:32]}  b4 {[%clk 0:02:25]} 14. cxb4 {[%clk 0:02:30]}  Nxb4 {[%clk 0:02:20]} 15. O-O {[%clk 0:02:28]}  Nc6 {[%clk 0:01:59]} 16. Rfb1 {[%clk 0:02:24]}  Qxd2 {[%clk 0:01:54]} 17. Nxd2 {[%clk 0:02:24]}  Nb4 {[%clk 0:01:54]} 18. dxc5 {[%clk 0:02:19]}  a5 {[%clk 0:01:26]} 19. Bb5 {[%clk 0:02:15]}  Nc6 {[%clk 0:00:50]} 20. c4 {[%clk 0:02:15]}  O-O {[%clk 0:00:29]} 21. Bd6 {[%clk 0:02:13]}  Rfc8 {[%clk 0:00:29]} 22. cxd5 {[%clk 0:02:13]}  exd5 {[%clk 0:00:30]} 23. Nf3 {[%clk 0:02:14]}  Nf8 {[%clk 0:00:24]} 24. Nd4 {[%clk 0:02:09]}  Nb4 {[%clk 0:00:24]} 25. Rc1 {[%clk 0:01:55]}  Ba6 {[%clk 0:00:12]} 26. c6 {[%clk 0:01:52]}  Ne6 {[%clk 0:00:13]} 27. Bxb4 {[%clk 0:01:44]}  axb4 {[%clk 0:00:12]} 28. Nxe6 {[%clk 0:01:44]}  fxe6 {[%clk 0:00:12]} 29. Rab1 {[%clk 0:01:45]}  Rc7 {[%clk 0:00:06]} 30. Rxb4 {[%clk 0:01:45]}  Bc8 {[%clk 0:00:07]} 31. f4 {[%clk 0:01:42]}  Kf7 {[%clk 0:00:07]} 32. Kf2 {[%clk 0:01:42]}  Ke7 {[%clk 0:00:07]} 33. e4 {[%clk 0:01:40]}  Kd6 {[%clk 0:00:05]} 34. e5+ {[%clk 0:01:40]}  Ke7 {[%clk 0:00:05]} 35. Ke3 {[%clk 0:01:40]}  Rca7 {[%clk 0:00:04]} 36. Kd4 {[%clk 0:01:40]}  Kd8 {[%clk 0:00:05]} 37. h5 {[%clk 0:01:35]}  Kc7 {[%clk 0:00:05]} 38. Kc5 {[%clk 0:01:34]}  Ra5 {[%clk 0:00:05]} 39. g6 {[%clk 0:01:30]}  h6 {[%clk 0:00:05]} 40. Rf1 {[%clk 0:01:29]}  Rb8 {[%clk 0:00:04]} 41. Rbb1 {[%clk 0:01:13]}  Rb6 {[%clk 0:00:04]} 42. Kd4 {[%clk 0:01:14]}  Ba6 {[%clk 0:00:03]} 43. f5 {[%clk 0:01:14]}  exf5 {[%clk 0:00:02]} 44. Rxf5 {[%clk 0:01:12]}  Bxb5 {[%clk 0:00:02]} 45. axb5 {[%clk 0:01:11]}  Rbxb5 {[%clk 0:00:03]} 46. Rxb5 {[%clk 0:01:06]}  Rxb5 {[%clk 0:00:03]} 47. Rf7+ {[%clk 0:01:07]}  Kxc6 {[%clk 0:00:04]} 48. Rxg7 {[%clk 0:01:07]}  Rb4+ {[%clk 0:00:04]} 49. Kd3 {[%clk 0:01:03]}  Rh4 {[%clk 0:00:04]} 50. Rg8 {[%clk 0:00:56]}  Rxh5 {[%clk 0:00:02]} 51. g7 {[%clk 0:00:56]}  Kb7 {[%clk 0:00:02]} 52. Re8 {[%clk 0:00:55]} 1-0


[Site "https://www.chess.com"]

[Event "Titled Tuesday Blitz December 13 Early 2022"]
[White "Todorovic, Bojan"]
[Black "Mikhailovsky, Vladimir"]
[WhiteFideId "917087"]
[BlackFideId "34105414"]
[WhiteElo "2266"]
[BlackElo "2295"]
[Result "1/2-1/2"]
[Round "08"]
[TimeControl "180+1"]
[Date "2022.12.14"]
[WhiteClock "0:00:06"]
[BlackClock "0:00:40"]

1. d4 {[%clk 0:02:59]}  e5 {[%clk 0:02:58]} 2. dxe5 {[%clk 0:02:58]}  Nc6 {[%clk 0:02:58]} 3. Nf3 {[%clk 0:02:57]}  Nge7 {[%clk 0:02:59]} 4. Nc3 {[%clk 0:02:48]}  Ng6 {[%clk 0:02:59]} 5. Bg5 {[%clk 0:02:47]}  Be7 {[%clk 0:02:59]} 6. Bxe7 {[%clk 0:02:46]}  Qxe7 {[%clk 0:03:00]} 7. Nd5 {[%clk 0:02:44]}  Qd8 {[%clk 0:03:01]} 8. e4 {[%clk 0:02:34]}  O-O {[%clk 0:03:01]} 9. Be2 {[%clk 0:02:33]}  Ncxe5 {[%clk 0:03:01]} 10. Nxe5 {[%clk 0:02:28]}  Nxe5 {[%clk 0:03:02]} 11. O-O {[%clk 0:02:22]}  d6 {[%clk 0:02:59]} 12. f4 {[%clk 0:02:21]}  Nd7 {[%clk 0:02:58]} 13. Qd4 {[%clk 0:02:17]}  Nc5 {[%clk 0:02:53]} 14. Bf3 {[%clk 0:02:16]}  Be6 {[%clk 0:02:53]} 15. Rad1 {[%clk 0:02:04]}  Bxd5 {[%clk 0:02:52]} 16. Qxd5 {[%clk 0:02:03]}  a5 {[%clk 0:02:53]} 17. e5 {[%clk 0:02:02]}  Qe7 {[%clk 0:02:30]} 18. Rfe1 {[%clk 0:01:47]}  Ra6 {[%clk 0:01:57]} 19. exd6 {[%clk 0:01:20]}  Qxd6 {[%clk 0:01:46]} 20. Qxd6 {[%clk 0:01:20]}  cxd6 {[%clk 0:01:42]} 21. Re7 {[%clk 0:01:19]}  Rb6 {[%clk 0:01:40]} 22. b3 {[%clk 0:01:19]}  a4 {[%clk 0:01:38]} 23. Bd5 {[%clk 0:01:18]}  g6 {[%clk 0:01:36]} 24. Rde1 {[%clk 0:01:14]}  Kg7 {[%clk 0:01:36]} 25. Rc7 {[%clk 0:01:11]}  axb3 {[%clk 0:01:33]} 26. axb3 {[%clk 0:01:10]}  Rb4 {[%clk 0:01:32]} 27. Bc4 {[%clk 0:01:05]}  b5 {[%clk 0:01:27]} 28. c3 {[%clk 0:01:02]}  Rxc4 {[%clk 0:01:25]} 29. bxc4 {[%clk 0:01:02]}  bxc4 {[%clk 0:01:26]} 30. Rc6 {[%clk 0:00:57]}  Ra8 {[%clk 0:01:24]} 31. Rxd6 {[%clk 0:00:53]}  Ra3 {[%clk 0:01:25]} 32. Rc6 {[%clk 0:00:44]}  Nd3 {[%clk 0:01:25]} 33. Rf1 {[%clk 0:00:41]}  Rxc3 {[%clk 0:01:22]} 34. f5 {[%clk 0:00:41]}  Ne5 {[%clk 0:01:18]} 35. f6+ {[%clk 0:00:40]}  Kh6 {[%clk 0:01:18]} 36. Rc5 {[%clk 0:00:39]}  Re3 {[%clk 0:01:17]} 37. h3 {[%clk 0:00:35]}  Kg5 {[%clk 0:01:15]} 38. Kh2 {[%clk 0:00:20]}  h5 {[%clk 0:01:13]} 39. Rc1 {[%clk 0:00:17]}  Kxf6 {[%clk 0:01:11]} 40. Rf1+ {[%clk 0:00:17]}  Kg7 {[%clk 0:01:09]} 41. Rc7 {[%clk 0:00:15]}  h4 {[%clk 0:01:10]} 42. Rf4 {[%clk 0:00:14]}  g5 {[%clk 0:01:09]} 43. Rf5 {[%clk 0:00:14]}  Kg6 {[%clk 0:01:09]} 44. Rxe5 {[%clk 0:00:14]}  Rxe5 {[%clk 0:01:09]} 45. Rxc4 {[%clk 0:00:15]}  f6 {[%clk 0:01:08]} 46. Rd4 {[%clk 0:00:15]}  Rc5 {[%clk 0:01:08]} 47. Re4 {[%clk 0:00:14]}  Rc2 {[%clk 0:01:08]} 48. Rd4 {[%clk 0:00:14]}  Rc1 {[%clk 0:01:08]} 49. Rb4 {[%clk 0:00:14]}  Rd1 {[%clk 0:01:07]} 50. Ra4 {[%clk 0:00:14]}  Rb1 {[%clk 0:01:08]} 51. Rc4 {[%clk 0:00:14]}  f5 {[%clk 0:01:08]} 52. Rc6+ {[%clk 0:00:13]}  Kf7 {[%clk 0:01:08]} 53. Rd6 {[%clk 0:00:14]}  g4 {[%clk 0:01:07]} 54. hxg4 {[%clk 0:00:13]}  fxg4 {[%clk 0:01:08]} 55. Rc6 {[%clk 0:00:13]}  Kg7 {[%clk 0:00:57]} 56. Rc4 {[%clk 0:00:11]}  g3+ {[%clk 0:00:57]} 57. Kh3 {[%clk 0:00:11]}  Rh1+ {[%clk 0:00:58]} 58. Kg4 {[%clk 0:00:11]}  Kf6 {[%clk 0:00:59]} 59. Rc6+ {[%clk 0:00:07]}  Ke5 {[%clk 0:01:00]} 60. Rh6 {[%clk 0:00:06]}  Rh2 {[%clk 0:00:56]} 61. Rxh4 {[%clk 0:00:06]}  Rxg2 {[%clk 0:00:56]} 62. Rh3 {[%clk 0:00:06]}  Ke4 {[%clk 0:00:41]} 63. Rxg3 {[%clk 0:00:06]}  Rxg3+ {[%clk 0:00:40]} 64. Kxg3 {[%clk 0:00:06]} 1/2-1/2


[Site "https://www.chess.com"]